Workbook

Sheet Hoja1
B2: Cuenta Pública 2022 Estado de Actividades Comparativo (pesos)
B4: Entidad Municipal: (1) TEXCALTITLAN No. 4052 | H4: Del 1 de Enero al 31 de Diciembre de 2022 (2)
B7: Cuenta (3) | C7: Concepto (4) | E7: 2022 (5) | F7: 2021 (5) | G7: Variación (6)
E8: Importe | F8: Importe | G8: Importe | H8: %
B10: 4000 | C10: INGRESOS Y OTROS BENEFICIOS
B11: 4100 | C11: Ingresos de la Gestión | E11: =SUM(E12:E19) -> 0 | F11: =SUM(F12:F19) -> 0 | G11: =SUM(G12:G19) -> 0 | H11: =IFERROR(G11/E11*100,0) -> 0
D12: Impuestos | E12: 0 | F12: 0 | G12: =E12-F12 -> 0 | H12: =IFERROR(G12/E12*100,0) -> 0
D13: Cuotas y Aportaciones de Seguridad Social | E13: 0 | F13: 0 | G13: 0 | H13: 0
D14: Contribuciones de Mejoras | E14: 0 | F14: 0 | G14: 0 | H14: 0
D15: Derechos | E15: 0 | F15: 0 | G15: 0 | H15: 0
D16: Productos de Tipo Corriente1 | E16: 0 | F16: 0 | G16: 0 | H16: 0
D17: Aprovechamientos de Tipo Corriente | E17: 0 | F17: 0 | G17: 0 | H17: 0
D18: Ingresos por Venta de Bienes y Servicios | E18: 0 | F18: 0 | G18: 0 | H18: 0
D19: Ingresos no Comprendidos en las Fracciones de la Ley de Ingresos Causados en Ejercicios Fiscales Anteriores Pendientes de Liquidación o Pago | G19: 0 | H19: 0
B21: 4200 | C21: Participaciones, Aportaciones, Transferencias, Asignaciones, Subsidios y Otras Ayudas. | E21: =SUM(E22:E23) -> 1,115,490.85 | F21: =SUM(F22:F23) -> 740,284.86 | G21: =SUM(G22:G23) -> 375,205.99 | H21: 33.64
D22: Participaciones y Aportaciones | E22: 0 | F22: 0 | G22: 0 | H22: 0
D23: Transferencias, Asignaciones, Subsidios y Otras Ayudas | E23: 1,115,490.85 | F23: 740,284.86 | G23: 375,205.99 | H23: 33.64
B25: 4300 | C25: Otros Ingresos y Beneficios | E25: =SUM(E26:E30) -> 6.47 | F25: =SUM(F26:F30) -> 16.36 | G25: =SUM(G26:G30) -> -9.89 | H25: =IFERROR(G25/E25*100,0) -> -152.86
D26: Ingresos Financieros | E26: 6.47 | F26: 16.36 | G26: =E26-F26 -> -9.89 | H26: -152.86
D27: Incremento por Variación de Inventarios | E27: 0 | F27: 0 | G27: =E27-F27 -> 0 | H27: 0
D28: Disminución del Exceso de Estimaciones por Pérdida o Deterioro u Obsolescencia | E28: 0 | F28: 0 | G28: =E28-F28 -> 0 | H28: 0
D29: Disminución del Exceso de Provisiones | E29: 0 | F29: 0 | G29: =E29-F29 -> 0 | H29: 0
D30: Otros Ingresos y Beneficios Varios | E30: 0 | F30: 0 | G30: =E30-F30 -> 0 | H30: 0
C32: Total de Ingresos y Otros Beneficios (7) | E32: =E11+E21+E25 -> 1,115,497.32 | F32: =F11+F21+F25 -> 740,301.22 | G32: =E32-F32 -> 375,196.10 | H32: =IFERROR(G32/E32*100,0) -> 33.63
B34: 5000 | C34: GASTOS Y OTRAS PÉRDIDAS
B35: 5100 | C35: Gastos de Funcionamiento | E35: =SUM(E36:E38) -> 1,017,926.22 | F35: =SUM(F36:F38) -> 921,858.13 | G35: =+E35-F35 -> 96,068.09 | H35: =IFERROR(G35/E35*100,0) -> 9.44
D36: Servicios Personales | E36: 600,836.24 | F36: 446,756.00 | G36: =E36-F36 -> 154,080.24 | H36: 25.64
D37: Materiales y Suministros | E37: 326,880.78 | F37: 312,597.19 | G37: =E37-F37 -> 14,283.59 | H37: 4.37
D38: Servicios Generales | E38: 90,209.20 | F38: 162,504.94 | G38: =E38-F38 -> -72,295.74 | H38: -80.14
B39: 5200 | C39: Transferencias, Asignaciones, Subsidios y Otras Ayudas | E39: =SUM(E40:E48) -> 25,000.00 | F39: =SUM(F40:F48) -> 6,400.05 | G39: =SUM(G40:G48) -> 18,599.95 | H39: 74.40
D40: Transferencias Internas y Asignaciones al Sector Público | E40: 0 | F40: 0 | G40: =E40-F40 -> 0 | H40: 0
D41: Transferencias al Resto del Sector Público | E41: 0 | F41: 0 | G41: 0 | H41: 0
D42: Subsidios y Subvenciones | E42: 0 | F42: 1,850.05 | G42: -1,850.05 | H42: 0
D43: Ayudas Sociales | E43: 25,000.00 | F43: 4,550.00 | G43: 20,450.00 | H43: 81.80
D44: Pensiones y Jubilaciones | E44: 0 | F44: 0 | G44: 0 | H44: 0
D45: Transferencias a Fideicomisos, Mandatos y Contratos Análogos | E45: 0 | F45: 0 | G45: 0 | H45: 0
D46: Transferencias a la Seguridad Social | E46: 0 | F46: 0 | G46: 0 | H46: 0
D47: Donativos | E47: 0 | F47: 0 | G47: 0 | H47: 0
D48: Transferencias al Exterior | E48: 0 | F48: 0 | G48: 0 | H48: 0
B50: 5300 | C50: Participaciones y Aportaciones | E50: =SUM(E51:E53) -> 0 | F50: =SUM(F51:F53) -> 0 | G50: =SUM(G51:G53) -> 0 | H50: =IFERROR(G50/E50*100,0) -> 0
D51: Participaciones | E51: 0 | F51: 0 | G51: =E51-F51 -> 0 | H51: 0
D52: Aportaciones | E52: 0 | F52: 0 | G52: =E52-F52 -> 0 | H52: 0
D53: Convenios | E53: 0 | F53: 0 | G53: =E53-F53 -> 0 | H53: 0
B55: 5400 | C55: Intereses, Comisiones y Otros Gastos de la Deuda Pública | E55: =SUM(E56:E61) -> 0 | F55: =SUM(F56:F61) -> 0 | G55: =SUM(G56:G61) -> 0 | H55: =IFERROR(G55/E55*100,0) -> 0
D56: Intereses de la Deuda Pública | E56: 0 | F56: 0 | G56: =E56-F56 -> 0 | H56: 0
D57: Comisiones de la Deuda Pública | E57: 0 | F57: 0 | G57: 0 | H57: 0
D58: Gastos de la Deuda Pública | E58: 0 | F58: 0 | G58: 0 | H58: 0
D59: Costo por Coberturas | E59: 0 | F59: 0 | G59: 0 | H59: 0
D60: Apoyos Financieros | E60: 0 | F60: 0 | G60: 0 | H60: 0
D61: Adeudos de Ejercicios Fiscales Anteriores (ADEFAS) | E61: 0 | F61: 0 | G61: 0 | H61: 0
B63: 5500 | C63: Otros Gastos y Pérdidas Extraordinarias | E63: =SUM(E64:E69) -> 0 | F63: =SUM(F64:F69) -> 0 | G63: =SUM(G64:G69) -> 0 | H63: =IFERROR(G63/E63*100,0) -> 0
D64: Estimaciones, Depreciaciones, Deterioros, Obsolescencia y Amortizaciones | E64: 0 | F64: 0 | G64: =E64-F64 -> 0 | H64: 0
D65: Provisiones | G65: 0 | H65: 0
D66: Disminución de Inventarios | G66: 0 | H66: 0
D67: Aumento por Insuficiencia de Estimaciones por Pérdida o Deterioro y Obsolescencia | G67: 0 | H67: 0
D68: Aumento por Insuficiencia de Provisiones | G68: 0 | H68: 0
D69: Otros Gastos | G69: 0 | H69: 0
B71: 5600 | C71: Inversión Pública | E71: =SUM(E72+E73) -> 9,048.00 | F71: =SUM(F72+F73) -> 0 | G71: =SUM(G72:G73) -> 9,048.00 | H71: =SUM(H72:H73) -> 100.00
D72: Inversión Pública no Capitalizable | E72: 0 | F72: 0 | G72: =E72-F72 -> 0 | H72: =IFERROR(G72/E72*100,0) -> 0
D73: Bienes Muebles e Intangibles | E73: 9,048.00 | F73: 0 | G73: =E73-F73 -> 9,048.00 | H73: 100.00
B77: 5700 | C77: Total de Gastos y Otras Pérdidas (8) | E77: =+E35+E39+E50+E55+E63+E71 -> 1,051,974.22 | F77: =+F35+F39+F50+F55+F63+F71 -> 928,258.18 | G77: =+E77-F77 -> 123,716.04 | H77: =IFERROR(G77/E77*100,0) -> 11.76
C79: Resultado del Ejercicio (Ahorro/Desahorro) (9) | E79: =+E32-E77 -> 63,523.10 | F79: =+F32-F77 -> -187,956.96 | G79: =+E79-F79 -> 251,480.06 | H79: =IFERROR(G79/E79*100,0) -> 395.89
C80: 1 No se Incluyen : Utilidades de Intereses . Por regla de presentación se revelan como ingresos financieros
B81: "Bajo protesta de decir verdad declaramos que los Estados Financieros y sus notas, son razonablemente correctos y son responsabilidad del emisor"
